[Event "*** SCC Grand Prix: Titled Tuesday Blitz"]
[Site "Chess.com"]
[Date "2020.08.11"]
[Round "4"]
[White "gusmaster2262"]
[Black "Nikithebest"]
[Result "1-0"]
[WhiteElo "2229"]
[BlackElo "2409"]
[TimeControl "180+1"]
[EndTime "10:39:57 PDT"]
[Termination "gusmaster2262 won by resignation"]

1. c4 {[%clk 0:03:00.9]} 1... c5 {[%clk 0:02:59.2]} 2. Nc3 {[%clk 0:03:01.2]}
2... Nc6 {[%clk 0:02:59.3]} 3. Nf3 {[%clk 0:02:59.4]} 3... Nf6 {[%clk
0:02:57.2]} 4. e3 {[%clk 0:02:59.1]} 4... e6 {[%clk 0:02:52.7]} 5. d4 {[%clk
0:02:58.4]} 5... d5 {[%clk 0:02:49.9]} 6. a3 {[%clk 0:02:58.5]} 6... a6 {[%clk
0:02:21.5]} 7. dxc5 {[%clk 0:02:56.3]} 7... Bxc5 {[%clk 0:02:20.7]} 8. b4 {[%clk
0:02:55.1]} 8... Ba7 {[%clk 0:02:18.3]} 9. Bb2 {[%clk 0:02:55]} 9... O-O {[%clk
0:02:12.4]} 10. Be2 {[%clk 0:02:49.4]} 10... dxc4 {[%clk 0:01:58.8]} 11. Bxc4
{[%clk 0:02:44.6]} 11... b5 {[%clk 0:01:55.6]} 12. Bd3 {[%clk 0:02:41.3]} 12...
Bb7 {[%clk 0:01:53.8]} 13. O-O {[%clk 0:02:39.6]} 13... Qe7 {[%clk 0:01:49.2]}
14. Qe2 {[%clk 0:02:33.2]} 14... Rac8 {[%clk 0:01:45]} 15. Rfd1 {[%clk
0:02:29.1]} 15... Rfd8 {[%clk 0:01:45]} 16. Ne4 {[%clk 0:02:25.4]} 16... Nxe4
{[%clk 0:01:38.5]} 17. Bxe4 {[%clk 0:02:23.9]} 17... f6 {[%clk 0:01:29.7]} 18.
Ne1 {[%clk 0:02:19.8]} 18... Bb8 {[%clk 0:01:23.8]} 19. Rac1 {[%clk 0:02:13.4]}
19... Ne5 {[%clk 0:01:20]} 20. Bxb7 {[%clk 0:02:08.7]} 20... Qxb7 {[%clk
0:01:20.9]} 21. Rxc8 {[%clk 0:01:58.2]} 21... Rxc8 {[%clk 0:01:17]} 22. Bxe5
{[%clk 0:01:53.6]} 22... Bxe5 {[%clk 0:01:17.1]} 23. Nd3 {[%clk 0:01:52.1]}
23... Bd6 {[%clk 0:01:14.7]} 24. e4 {[%clk 0:01:51.5]} 24... Bf8 {[%clk
0:00:57.6]} 25. e5 {[%clk 0:01:47.9]} 25... f5 {[%clk 0:00:55.9]} 26. Nf4 {[%clk
0:01:47.8]} 26... Qc6 {[%clk 0:00:42.8]} 27. h4 {[%clk 0:01:41.2]} 27... Be7
{[%clk 0:00:40.7]} 28. g3 {[%clk 0:01:38.7]} 28... Rd8 {[%clk 0:00:38.4]} 29.
Re1 {[%clk 0:01:34.3]} 29... Rd4 {[%clk 0:00:36.5]} 30. Qe3 {[%clk 0:01:30.5]}
30... Rc4 {[%clk 0:00:35.1]} 31. Rd1 {[%clk 0:01:27.3]} 31... Kf7 {[%clk
0:00:33.3]} 32. Nh3 {[%clk 0:01:23.1]} 32... Rc2 {[%clk 0:00:27.3]} 33. Qa7
{[%clk 0:01:17.1]} 33... Ke8 {[%clk 0:00:21.7]} 34. h5 {[%clk 0:01:13.1]} 34...
Rc1 {[%clk 0:00:19.5]} 35. Rxc1 {[%clk 0:01:07.6]} 35... Qxc1+ {[%clk
0:00:20.4]} 36. Kh2 {[%clk 0:01:04.6]} 36... Qc6 {[%clk 0:00:20.3]} 37. Qb8+
{[%clk 0:01:00.1]} 37... Kf7 {[%clk 0:00:20.5]} 38. h6 {[%clk 0:00:53.3]} 38...
gxh6 {[%clk 0:00:20.1]} 39. Qh8 {[%clk 0:00:49.2]} 39... Qf3 {[%clk 0:00:16.8]}
40. Qxh7+ {[%clk 0:00:46.3]} 40... Ke8 {[%clk 0:00:17.5]} 41. Qxh6 {[%clk
0:00:44]} 41... Kd7 {[%clk 0:00:18.2]} 42. Qd2+ {[%clk 0:00:41]} 42... Ke8
{[%clk 0:00:15.8]} 43. Qc1 {[%clk 0:00:37]} 43... Kf7 {[%clk 0:00:11.8]} 44. Qh6
{[%clk 0:00:33]} 44... Qxa3 {[%clk 0:00:11]} 45. Nf4 {[%clk 0:00:27.4]} 45...
Qb3 {[%clk 0:00:08.9]} 46. Qg6+ {[%clk 0:00:24.2]} 46... Kf8 {[%clk 0:00:08.1]}
47. Nxe6+ {[%clk 0:00:24.1]} 1-0

[Event "*** SCC Grand Prix: Titled Tuesday Blitz"]
[Site "Chess.com"]
[Date "2020.08.11"]
[Round "4"]
[White "reniite"]
[Black "czasnaszachy"]
[Result "1/2-1/2"]
[WhiteElo "1951"]
[BlackElo "2215"]
[TimeControl "180+1"]
[EndTime "10:39:58 PDT"]
[Termination "Game drawn by repetition"]

1. e4 {[%clk 0:03:00.9]} 1... c5 {[%clk 0:03:00]} 2. Nf3 {[%clk 0:03:00.5]} 2...
e6 {[%clk 0:02:59.5]} 3. d4 {[%clk 0:03:00.3]} 3... cxd4 {[%clk 0:02:59.5]} 4.
Nxd4 {[%clk 0:03:01.2]} 4... Nc6 {[%clk 0:02:59.4]} 5. g3 {[%clk 0:03:00.5]}
5... Qc7 {[%clk 0:02:57]} 6. Bg2 {[%clk 0:03:00.5]} 6... a6 {[%clk 0:02:56.9]}
7. O-O {[%clk 0:03:00.1]} 7... Nf6 {[%clk 0:02:55.6]} 8. Nc3 {[%clk 0:02:59.4]}
8... Nxd4 {[%clk 0:02:55.5]} 9. Qxd4 {[%clk 0:02:59.1]} 9... Bc5 {[%clk
0:02:56.1]} 10. Bf4 {[%clk 0:02:56]} 10... d6 {[%clk 0:02:54.8]} 11. Qd2 {[%clk
0:02:56.1]} 11... h6 {[%clk 0:02:53]} 12. Na4 {[%clk 0:02:54.7]} 12... e5 {[%clk
0:02:36.4]} 13. Nxc5 {[%clk 0:02:50.6]} 13... dxc5 {[%clk 0:02:29.9]} 14. Be3
{[%clk 0:02:50.3]} 14... O-O {[%clk 0:02:28.4]} 15. Rad1 {[%clk 0:02:49.1]}
15... Bg4 {[%clk 0:02:21]} 16. f3 {[%clk 0:02:48.5]} 16... Be6 {[%clk
0:02:20.9]} 17. b3 {[%clk 0:02:47.6]} 17... Rfd8 {[%clk 0:02:19.9]} 18. Qf2
{[%clk 0:02:48.1]} 18... b6 {[%clk 0:02:18.5]} 19. c4 {[%clk 0:02:48.3]} 19...
Rd7 {[%clk 0:01:54.7]} 20. a4 {[%clk 0:02:36.5]} 20... a5 {[%clk 0:01:50.4]} 21.
h3 {[%clk 0:02:26.5]} 21... Rad8 {[%clk 0:01:48.7]} 22. Rxd7 {[%clk 0:02:24.8]}
22... Rxd7 {[%clk 0:01:46.6]} 23. f4 {[%clk 0:02:25]} 23... Rd3 {[%clk
0:01:38.5]} 24. Rb1 {[%clk 0:02:05.5]} 24... Qd6 {[%clk 0:01:09]} 25. Qe2 {[%clk
0:02:00]} 25... Qd8 {[%clk 0:00:28.9]} 26. fxe5 {[%clk 0:01:44.8]} 26... Nh7
{[%clk 0:00:28.8]} 27. Bf4 {[%clk 0:01:31]} 27... Nf8 {[%clk 0:00:28.2]} 28. Kh2
{[%clk 0:01:28.2]} 28... Ng6 {[%clk 0:00:28]} 29. Rb2 {[%clk 0:01:15.2]} 29...
Qd7 {[%clk 0:00:24.9]} 30. Qh5 {[%clk 0:00:57.7]} 30... Qd4 {[%clk 0:00:18.6]}
31. Qe2 {[%clk 0:00:50.4]} 31... Qd7 {[%clk 0:00:15.8]} 32. Bf1 {[%clk
0:00:46.2]} 32... Nxf4 {[%clk 0:00:14.4]} 33. gxf4 {[%clk 0:00:45.6]} 33... Rd4
{[%clk 0:00:02.8]} 34. f5 {[%clk 0:00:42.4]} 34... Bxf5 {[%clk 0:00:03]} 35.
exf5 {[%clk 0:00:41.3]} 35... Qxf5 {[%clk 0:00:03.7]} 36. Rc2 {[%clk 0:00:18.2]}
36... Re4 {[%clk 0:00:03.8]} 37. Qg2 {[%clk 0:00:17.5]} 37... Qxe5+ {[%clk
0:00:04.1]} 38. Kg1 {[%clk 0:00:17.1]} 38... Qe7 {[%clk 0:00:02.9]} 39. Rf2
{[%clk 0:00:16.7]} 39... Re6 {[%clk 0:00:02.8]} 40. Qf3 {[%clk 0:00:17.2]} 40...
Rg6+ {[%clk 0:00:02.6]} 41. Bg2 {[%clk 0:00:17.9]} 41... Rf6 {[%clk 0:00:02.7]}
42. Kh2 {[%clk 0:00:18.4]} 42... Rxf3 {[%clk 0:00:02.5]} 43. Rxf3 {[%clk
0:00:19.3]} 43... Qe5+ {[%clk 0:00:02.9]} 44. Kg1 {[%clk 0:00:20.2]} 44... Qe1+
{[%clk 0:00:02.9]} 45. Kh2 {[%clk 0:00:20.2]} 45... Qe5+ {[%clk 0:00:02.9]} 46.
Kg1 {[%clk 0:00:21.1]} 46... Qb2 {[%clk 0:00:03.2]} 47. Kh2 {[%clk 0:00:22]}
47... Qc1 {[%clk 0:00:03.1]} 48. Kg3 {[%clk 0:00:22.9]} 48... Qb2 {[%clk
0:00:03.1]} 49. Kh2 {[%clk 0:00:22.9]} 49... Qe5+ {[%clk 0:00:03.7]} 1/2-1/2

[Event "*** SCC Grand Prix: Titled Tuesday Blitz"]
[Site "Chess.com"]
[Date "2020.08.11"]
[Round "4"]
[White "ZverevLev"]
[Black "m_ezat"]
[Result "0-1"]
[WhiteElo "2316"]
[BlackElo "2597"]
[TimeControl "180+1"]
[EndTime "10:40:01 PDT"]
[Termination "m_ezat won by resignation"]

1. e4 {[%clk 0:03:00.9]} 1... c6 {[%clk 0:02:59.6]} 2. d4 {[%clk 0:02:59.7]}
2... d5 {[%clk 0:03:00.1]} 3. e5 {[%clk 0:02:59.7]} 3... c5 {[%clk 0:02:58.5]}
4. dxc5 {[%clk 0:02:57.9]} 4... Nc6 {[%clk 0:02:59.1]} 5. f4 {[%clk 0:02:56.6]}
5... h5 {[%clk 0:02:58]} 6. Nf3 {[%clk 0:02:55.7]} 6... Bg4 {[%clk 0:02:57.1]}
7. Be2 {[%clk 0:02:52.4]} 7... e6 {[%clk 0:02:57.1]} 8. Be3 {[%clk 0:02:50.1]}
8... Nh6 {[%clk 0:02:50.1]} 9. c3 {[%clk 0:02:46.9]} 9... Nf5 {[%clk 0:02:45.2]}
10. Bf2 {[%clk 0:02:42.1]} 10... h4 {[%clk 0:02:45.4]} 11. h3 {[%clk 0:02:34.3]}
11... Bxf3 {[%clk 0:02:45]} 12. Bxf3 {[%clk 0:02:33.8]} 12... g5 {[%clk
0:02:39]} 13. b4 {[%clk 0:01:53.5]} 13... gxf4 {[%clk 0:02:37.3]} 14. Qa4 {[%clk
0:01:47.6]} 14... Qd7 {[%clk 0:02:36.1]} 15. Bg4 {[%clk 0:01:39.7]} 15... Ng3
{[%clk 0:02:29.8]} 16. Bxg3 {[%clk 0:01:29.2]} 16... fxg3 {[%clk 0:02:29.4]} 17.
O-O {[%clk 0:01:27.7]} 17... Nxe5 {[%clk 0:02:14.6]} 18. Qd1 {[%clk 0:00:59.1]}
18... a5 {[%clk 0:01:46.4]} 19. Be2 {[%clk 0:00:52]} 19... Bg7 {[%clk
0:01:37.8]} 20. Nd2 {[%clk 0:00:44.6]} 20... Ke7 {[%clk 0:00:42.7]} 21. Nb3
{[%clk 0:00:36.5]} 21... axb4 {[%clk 0:00:39.1]} 22. cxb4 {[%clk 0:00:37.4]}
22... Nc6 {[%clk 0:00:38.5]} 23. b5 {[%clk 0:00:35.2]} 23... Nb4 {[%clk
0:00:34.6]} 24. Qd2 {[%clk 0:00:24.7]} 24... Bxa1 {[%clk 0:00:24]} 25. Rxa1
{[%clk 0:00:25.6]} 25... Ra4 {[%clk 0:00:22.3]} 26. Qg5+ {[%clk 0:00:20.3]}
26... Kf8 {[%clk 0:00:22.2]} 27. Qe5 {[%clk 0:00:19]} 27... Rg8 {[%clk
0:00:21.4]} 28. Qb8+ {[%clk 0:00:17.5]} 28... Qe8 {[%clk 0:00:19]} 29. Qe5
{[%clk 0:00:18.4]} 29... Nc2 {[%clk 0:00:17.6]} 30. Rf1 {[%clk 0:00:17.2]} 30...
Re4 {[%clk 0:00:18.1]} 31. Qd6+ {[%clk 0:00:15.5]} 31... Qe7 {[%clk 0:00:18.4]}
32. Bh5 {[%clk 0:00:13.2]} 32... f5 {[%clk 0:00:14]} 33. Qb8+ {[%clk 0:00:11]}
33... Kg7 {[%clk 0:00:14.2]} 34. Qa7 {[%clk 0:00:08.7]} 34... Ne3 {[%clk
0:00:14.2]} 35. Re1 {[%clk 0:00:07.3]} 35... Kh6 {[%clk 0:00:10.1]} 36. Bf3
{[%clk 0:00:06.2]} 36... Re5 {[%clk 0:00:09.8]} 37. c6 {[%clk 0:00:06.6]} 37...
Qb4 {[%clk 0:00:07.4]} 38. Rxe3 {[%clk 0:00:05.3]} 38... Qe1+ {[%clk 0:00:03.7]}
0-1

[Event "*** SCC Grand Prix: Titled Tuesday Blitz"]
[Site "Chess.com"]
[Date "2020.08.11"]
[Round "4"]
[White "emiliocordova"]
[Black "Paladin61"]
[Result "0-1"]
[WhiteElo "2825"]
[BlackElo "2640"]
[TimeControl "180+1"]
[EndTime "10:40:03 PDT"]
[Termination "Paladin61 won by resignation"]

1. d4 {[%clk 0:03:00.9]} 1... Nf6 {[%clk 0:02:59.1]} 2. Nf3 {[%clk 0:03:01.8]}
2... g6 {[%clk 0:02:58.4]} 3. g3 {[%clk 0:03:01.5]} 3... Bg7 {[%clk 0:02:57]} 4.
Bg2 {[%clk 0:03:02.4]} 4... O-O {[%clk 0:02:57.4]} 5. O-O {[%clk 0:03:03.3]}
5... d6 {[%clk 0:02:57.4]} 6. c4 {[%clk 0:03:03.2]} 6... Nc6 {[%clk 0:02:56.7]}
7. Nc3 {[%clk 0:03:03.4]} 7... a6 {[%clk 0:02:56.9]} 8. h3 {[%clk 0:03:00.8]}
8... Bd7 {[%clk 0:02:56.2]} 9. Be3 {[%clk 0:02:58.2]} 9... Rb8 {[%clk
0:02:47.3]} 10. Rc1 {[%clk 0:02:57.1]} 10... b5 {[%clk 0:02:27.5]} 11. Nd2
{[%clk 0:02:56.8]} 11... e6 {[%clk 0:02:21.6]} 12. d5 {[%clk 0:02:47.6]} 12...
Ne7 {[%clk 0:02:13.1]} 13. b3 {[%clk 0:02:24.5]} 13... Nf5 {[%clk 0:01:48.4]}
14. Bg5 {[%clk 0:02:23.2]} 14... h6 {[%clk 0:01:45.8]} 15. Bxf6 {[%clk
0:02:22.9]} 15... Bxf6 {[%clk 0:01:43.6]} 16. Nde4 {[%clk 0:02:20.2]} 16... Bg7
{[%clk 0:01:40.3]} 17. e3 {[%clk 0:02:14.3]} 17... bxc4 {[%clk 0:01:11.8]} 18.
bxc4 {[%clk 0:02:15.2]} 18... Rb2 {[%clk 0:01:02.9]} 19. Rc2 {[%clk 0:02:12.2]}
19... Qb8 {[%clk 0:01:00.7]} 20. Qc1 {[%clk 0:02:08.1]} 20... Rxc2 {[%clk
0:00:58.2]} 21. Qxc2 {[%clk 0:02:07.7]} 21... Qb4 {[%clk 0:00:57.6]} 22. Rb1
{[%clk 0:01:55.3]} 22... Qa5 {[%clk 0:00:48.8]} 23. Rb7 {[%clk 0:01:42.5]} 23...
Bc8 {[%clk 0:00:47.5]} 24. Rb3 {[%clk 0:01:37.6]} 24... Ne7 {[%clk 0:00:39.1]}
25. h4 {[%clk 0:01:09.8]} 25... Bd7 {[%clk 0:00:34.3]} 26. Nd2 {[%clk
0:01:01.6]} 26... Qc5 {[%clk 0:00:25.5]} 27. Nce4 {[%clk 0:00:53.2]} 27... Qa7
{[%clk 0:00:25]} 28. dxe6 {[%clk 0:00:42.8]} 28... Bxe6 {[%clk 0:00:23.4]} 29.
Rb7 {[%clk 0:00:41.1]} 29... Qa8 {[%clk 0:00:20]} 30. Rxc7 {[%clk 0:00:40.8]}
30... Qd8 {[%clk 0:00:20.1]} 31. Ra7 {[%clk 0:00:40.6]} 31... Nc6 {[%clk
0:00:17.2]} 32. Nf6+ {[%clk 0:00:40.9]} 32... Bxf6 {[%clk 0:00:13.4]} 33. Bxc6
{[%clk 0:00:41.8]} 33... Qb6 {[%clk 0:00:13.6]} 34. Ne4 {[%clk 0:00:16.2]} 34...
Bg7 {[%clk 0:00:13.1]} 35. Rd7 {[%clk 0:00:13.9]} 35... Qxc6 {[%clk 0:00:12.2]}
36. Rxd6 {[%clk 0:00:14.3]} 36... Qb7 {[%clk 0:00:11.5]} 37. c5 {[%clk
0:00:14.8]} 37... Rc8 {[%clk 0:00:10.8]} 38. c6 {[%clk 0:00:15.1]} 38... Qc7
{[%clk 0:00:10]} 39. Qd3 {[%clk 0:00:12.1]} 39... Bf5 {[%clk 0:00:10]} 40. Rd5
{[%clk 0:00:07.9]} 40... Qxc6 {[%clk 0:00:09.4]} 41. Rd8+ {[%clk 0:00:07.9]}
41... Rxd8 {[%clk 0:00:09.5]} 42. Qxd8+ {[%clk 0:00:08.8]} 42... Kh7 {[%clk
0:00:09.8]} 43. Nd6 {[%clk 0:00:09.5]} 43... Bh3 {[%clk 0:00:08.5]} 44. e4
{[%clk 0:00:09.1]} 44... Be6 {[%clk 0:00:07.8]} 45. Kg2 {[%clk 0:00:07.8]} 45...
Be5 {[%clk 0:00:07.3]} 46. Ne8 {[%clk 0:00:08.1]} 46... Qxe4+ {[%clk 0:00:06.6]}
47. Kh2 {[%clk 0:00:08.7]} 47... Bd5 {[%clk 0:00:06.1]} 0-1

[Event "*** SCC Grand Prix: Titled Tuesday Blitz"]
[Site "Chess.com"]
[Date "2020.08.11"]
[Round "4"]
[White "kakakz"]
[Black "TimKett"]
[Result "1-0"]
[WhiteElo "2442"]
[BlackElo "2200"]
[TimeControl "180+1"]
[EndTime "10:40:05 PDT"]
[Termination "kakakz won by resignation"]

1. d4 {[%clk 0:03:00]} 1... d5 {[%clk 0:02:59.2]} 2. Nf3 {[%clk 0:02:59.6]} 2...
e6 {[%clk 0:02:59.4]} 3. g3 {[%clk 0:02:58.3]} 3... c5 {[%clk 0:02:59.7]} 4. Bg2
{[%clk 0:02:59.2]} 4... cxd4 {[%clk 0:02:59.6]} 5. O-O {[%clk 0:02:58.9]} 5...
Nc6 {[%clk 0:02:58.1]} 6. Nxd4 {[%clk 0:02:59.3]} 6... Nf6 {[%clk 0:02:58.6]} 7.
c4 {[%clk 0:02:58.8]} 7... Be7 {[%clk 0:02:56.4]} 8. Nc3 {[%clk 0:02:58.6]} 8...
O-O {[%clk 0:02:55.2]} 9. cxd5 {[%clk 0:02:58.6]} 9... exd5 {[%clk 0:02:54.7]}
10. Bg5 {[%clk 0:02:58]} 10... h6 {[%clk 0:02:49.1]} 11. Bf4 {[%clk 0:02:54.8]}
11... Bg4 {[%clk 0:02:28.3]} 12. h3 {[%clk 0:02:46.8]} 12... Be6 {[%clk
0:02:27.1]} 13. Rc1 {[%clk 0:02:43.8]} 13... Qd7 {[%clk 0:02:25.8]} 14. Kh2
{[%clk 0:02:37.2]} 14... Rad8 {[%clk 0:02:21.1]} 15. Na4 {[%clk 0:02:27.7]}
15... Ne4 {[%clk 0:01:59.4]} 16. f3 {[%clk 0:01:44]} 16... Ng5 {[%clk
0:01:40.2]} 17. h4 {[%clk 0:01:39.8]} 17... Nh3 {[%clk 0:01:28.1]} 18. Nxe6
{[%clk 0:01:37.9]} 18... Nxf4 {[%clk 0:01:18.4]} 19. Nxf4 {[%clk 0:01:20.2]}
19... g5 {[%clk 0:01:10.1]} 20. hxg5 {[%clk 0:01:08.3]} 20... hxg5 {[%clk
0:01:05.8]} 21. Nh5 {[%clk 0:01:08.3]} 21... g4 {[%clk 0:00:50.2]} 22. fxg4
{[%clk 0:00:49.3]} 22... Qxg4 {[%clk 0:00:49.1]} 23. e3 {[%clk 0:00:40.2]} 23...
Qxd1 {[%clk 0:00:35]} 24. Rcxd1 {[%clk 0:00:33.8]} 24... d4 {[%clk 0:00:29.6]}
25. Bxc6 {[%clk 0:00:32.2]} 25... bxc6 {[%clk 0:00:29.3]} 26. Rxd4 {[%clk
0:00:31.8]} 26... Bg5 {[%clk 0:00:24.4]} 27. Nf4 {[%clk 0:00:29.4]} 27... Rfe8
{[%clk 0:00:21.7]} 28. Rf3 {[%clk 0:00:24.6]} 28... Bf6 {[%clk 0:00:14.8]} 29.
Rxd8 {[%clk 0:00:20.5]} 29... Rxd8 {[%clk 0:00:15]} 30. Rf2 {[%clk 0:00:20.6]}
30... Re8 {[%clk 0:00:14.5]} 31. Re2 {[%clk 0:00:20.4]} 31... Rd8 {[%clk
0:00:13.7]} 32. Nc5 {[%clk 0:00:19.6]} 32... Rd1 {[%clk 0:00:13.3]} 33. Ne4
{[%clk 0:00:18.9]} 33... Be5 {[%clk 0:00:12.5]} 34. Kg2 {[%clk 0:00:18.2]} 34...
Rb1 {[%clk 0:00:11.5]} 35. b3 {[%clk 0:00:17.8]} 35... a5 {[%clk 0:00:10.5]} 36.
Nd2 {[%clk 0:00:16.6]} 36... Ra1 {[%clk 0:00:08.8]} 37. Nc4 {[%clk 0:00:16.8]}
37... Bxf4 {[%clk 0:00:08.1]} 38. gxf4 {[%clk 0:00:16.2]} 38... a4 {[%clk
0:00:08.5]} 39. bxa4 {[%clk 0:00:16.2]} 39... Rc1 {[%clk 0:00:09]} 40. Ne5
{[%clk 0:00:16.4]} 40... Rc3 {[%clk 0:00:07.7]} 41. a5 {[%clk 0:00:16.3]} 41...
Ra3 {[%clk 0:00:07.8]} 42. Nxc6 {[%clk 0:00:16.4]} 1-0

[Event "*** SCC Grand Prix: Titled Tuesday Blitz"]
[Site "Chess.com"]
[Date "2020.08.11"]
[Round "4"]
[White "sodastream007"]
[Black "Anton_Demchenko"]
[Result "0-1"]
[WhiteElo "2225"]
[BlackElo "2831"]
[TimeControl "180+1"]
[EndTime "10:40:06 PDT"]
[Termination "Anton_Demchenko won by resignation"]

1. d4 {[%clk 0:02:55.2]} 1... d5 {[%clk 0:02:58.2]} 2. c4 {[%clk 0:02:55.2]}
2... dxc4 {[%clk 0:02:58.8]} 3. Nf3 {[%clk 0:02:52.4]} 3... Nf6 {[%clk
0:02:55.6]} 4. e3 {[%clk 0:02:52.6]} 4... Bg4 {[%clk 0:02:55.6]} 5. Bxc4 {[%clk
0:02:51.3]} 5... e6 {[%clk 0:02:56.1]} 6. Nbd2 {[%clk 0:02:47.8]} 6... Nbd7
{[%clk 0:02:51]} 7. h3 {[%clk 0:02:47.5]} 7... Bh5 {[%clk 0:02:51.2]} 8. O-O
{[%clk 0:02:43.5]} 8... Be7 {[%clk 0:02:50.7]} 9. Re1 {[%clk 0:02:40.8]} 9...
O-O {[%clk 0:02:50.5]} 10. Bd3 {[%clk 0:02:32.3]} 10... c5 {[%clk 0:02:48.5]}
11. Be2 {[%clk 0:02:05]} 11... Rc8 {[%clk 0:02:46.1]} 12. b3 {[%clk 0:01:57.4]}
12... Bg6 {[%clk 0:02:39.3]} 13. Bb2 {[%clk 0:01:56.1]} 13... cxd4 {[%clk
0:02:37.2]} 14. Nxd4 {[%clk 0:01:52.1]} 14... e5 {[%clk 0:02:37.3]} 15. Nb5
{[%clk 0:01:51.7]} 15... Bc2 {[%clk 0:02:17.5]} 16. Qc1 {[%clk 0:01:51.4]} 16...
Bxb3 {[%clk 0:02:17.4]} 17. Nc3 {[%clk 0:01:44.8]} 17... Be6 {[%clk 0:02:15.2]}
18. Qb1 {[%clk 0:01:41]} 18... Qb6 {[%clk 0:02:07.7]} 19. Nce4 {[%clk
0:01:36.6]} 19... Nxe4 {[%clk 0:02:02.6]} 20. Nxe4 {[%clk 0:01:35.6]} 20... Rfd8
{[%clk 0:01:55.1]} 21. Bd3 {[%clk 0:01:19.7]} 21... h6 {[%clk 0:01:51.6]} 22. a4
{[%clk 0:01:19.1]} 22... Bb4 {[%clk 0:01:48.4]} 23. Rd1 {[%clk 0:01:15.9]} 23...
a6 {[%clk 0:01:32.9]} 24. Ba3 {[%clk 0:01:03.6]} 24... Bxa3 {[%clk 0:01:30.8]}
25. Rxa3 {[%clk 0:01:04.5]} 25... Qxb1 {[%clk 0:01:17.6]} 26. Rxb1 {[%clk
0:01:05.4]} 26... Rc7 {[%clk 0:01:18.1]} 27. Rc3 {[%clk 0:00:51.7]} 27... Rxc3
{[%clk 0:01:06.5]} 28. Nxc3 {[%clk 0:00:52.6]} 28... Nc5 {[%clk 0:01:07]} 29.
Be4 {[%clk 0:00:47.4]} 29... Rd7 {[%clk 0:01:00.8]} 30. Rb6 {[%clk 0:00:41.7]}
30... Kf8 {[%clk 0:00:58.3]} 31. a5 {[%clk 0:00:38.6]} 31... Rc7 {[%clk
0:00:48.1]} 32. Nd5 {[%clk 0:00:34.7]} 32... Rd7 {[%clk 0:00:39.6]} 33. Nc3
{[%clk 0:00:25.4]} 33... Ke7 {[%clk 0:00:40]} 34. g4 {[%clk 0:00:24.6]} 34...
Kd8 {[%clk 0:00:39]} 35. f4 {[%clk 0:00:24.8]} 35... exf4 {[%clk 0:00:37.8]} 36.
exf4 {[%clk 0:00:25.7]} 36... f6 {[%clk 0:00:34.9]} 37. f5 {[%clk 0:00:25.3]}
37... Bf7 {[%clk 0:00:35.3]} 38. Bf3 {[%clk 0:00:23.4]} 38... Rd3 {[%clk
0:00:29.6]} 39. Ne4 {[%clk 0:00:23.8]} 39... Nd7 {[%clk 0:00:27]} 40. Kf2 {[%clk
0:00:21.9]} 40... Nxb6 {[%clk 0:00:25.8]} 41. axb6 {[%clk 0:00:22.2]} 41... Bd5
{[%clk 0:00:24.8]} 42. Ke2 {[%clk 0:00:18.7]} 42... Rxf3 {[%clk 0:00:25]} 43.
Kxf3 {[%clk 0:00:18.5]} 43... Kd7 {[%clk 0:00:25.3]} 44. Kf4 {[%clk 0:00:18.5]}
44... Bxe4 {[%clk 0:00:25.6]} 45. Kxe4 {[%clk 0:00:18.7]} 45... Kc6 {[%clk
0:00:26.5]} 46. Kd4 {[%clk 0:00:19.2]} 46... Kxb6 {[%clk 0:00:26.3]} 47. Kd5
{[%clk 0:00:20.1]} 47... a5 {[%clk 0:00:26.7]} 48. Ke6 {[%clk 0:00:21]} 48... a4
{[%clk 0:00:27.3]} 49. Kf7 {[%clk 0:00:21.9]} 49... a3 {[%clk 0:00:28]} 50. Kxg7
{[%clk 0:00:22.8]} 50... a2 {[%clk 0:00:28.7]} 51. Kxf6 {[%clk 0:00:23.7]} 51...
a1=Q+ {[%clk 0:00:29.3]} 52. Kg6 {[%clk 0:00:23.6]} 52... Qh1 {[%clk 0:00:26.4]}
53. f6 {[%clk 0:00:23.7]} 53... Qxh3 {[%clk 0:00:26.4]} 54. f7 {[%clk 0:00:24]}
54... Qxg4+ {[%clk 0:00:26.7]} 55. Kh7 {[%clk 0:00:24.3]} 55... Qf5+ {[%clk
0:00:26.8]} 56. Kh8 {[%clk 0:00:24.8]} 56... h5 {[%clk 0:00:26.4]} 57. Kg8
{[%clk 0:00:24.6]} 57... Qg6+ {[%clk 0:00:25.7]} 58. Kh8 {[%clk 0:00:25.1]}
58... Qf6+ {[%clk 0:00:26]} 59. Kg8 {[%clk 0:00:25.1]} 59... h4 {[%clk
0:00:25.8]} 60. f8=Q {[%clk 0:00:22.8]} 60... Qxf8+ {[%clk 0:00:25.9]} 61. Kxf8
{[%clk 0:00:23.7]} 61... h3 {[%clk 0:00:26.2]} 0-1

[Event "*** SCC Grand Prix: Titled Tuesday Blitz"]
[Site "Chess.com"]
[Date "2020.08.11"]
[Round "4"]
[White "Azeryahu"]
[Black "Sekar24"]
[Result "1-0"]
[WhiteElo "2770"]
[BlackElo "2513"]
[TimeControl "180+1"]
[EndTime "10:40:07 PDT"]
[Termination "Azeryahu won on time"]

1. d4 {[%clk 0:03:00.9]} 1... Nf6 {[%clk 0:02:58.9]} 2. Nf3 {[%clk 0:03:00.9]}
2... e6 {[%clk 0:02:59.2]} 3. g3 {[%clk 0:03:00.4]} 3... b5 {[%clk 0:02:57.3]}
4. Bg2 {[%clk 0:02:57.5]} 4... Bb7 {[%clk 0:02:57.5]} 5. O-O {[%clk 0:02:58]}
5... c5 {[%clk 0:02:58.1]} 6. c3 {[%clk 0:02:56.3]} 6... Be7 {[%clk 0:02:56.4]}
7. Bg5 {[%clk 0:02:55.7]} 7... O-O {[%clk 0:02:54.3]} 8. Bxf6 {[%clk 0:02:50.9]}
8... Bxf6 {[%clk 0:02:52.1]} 9. dxc5 {[%clk 0:02:50.8]} 9... Na6 {[%clk
0:02:41.6]} 10. Qd3 {[%clk 0:01:59]} 10... Nxc5 {[%clk 0:01:55.2]} 11. Qxb5
{[%clk 0:01:58.8]} 11... Rc8 {[%clk 0:01:55.7]} 12. Qb4 {[%clk 0:01:46.5]} 12...
Ba6 {[%clk 0:01:48.5]} 13. Re1 {[%clk 0:01:46.7]} 13... d5 {[%clk 0:01:39.9]}
14. Nbd2 {[%clk 0:01:40.6]} 14... Qc7 {[%clk 0:01:40.1]} 15. Qa3 {[%clk
0:01:36.3]} 15... Qb6 {[%clk 0:01:31.7]} 16. Nd4 {[%clk 0:01:28]} 16... Be7
{[%clk 0:01:28.6]} 17. b4 {[%clk 0:01:22.4]} 17... Nd7 {[%clk 0:01:25.4]} 18. e4
{[%clk 0:00:59.6]} 18... Bf6 {[%clk 0:00:57.5]} 19. N2f3 {[%clk 0:00:36.4]}
19... dxe4 {[%clk 0:00:56.2]} 20. Rxe4 {[%clk 0:00:37.3]} 20... Bb7 {[%clk
0:00:54.7]} 21. Re3 {[%clk 0:00:37.8]} 21... g6 {[%clk 0:00:48.6]} 22. Rae1
{[%clk 0:00:27.8]} 22... e5 {[%clk 0:00:45.4]} 23. Nb3 {[%clk 0:00:20.2]} 23...
e4 {[%clk 0:00:35.8]} 24. Nfd4 {[%clk 0:00:20]} 24... Bg5 {[%clk 0:00:35.7]} 25.
R3e2 {[%clk 0:00:11.6]} 25... Rxc3 {[%clk 0:00:33.6]} 26. Bxe4 {[%clk
0:00:07.8]} 26... Bxe4 {[%clk 0:00:28.6]} 27. Rxe4 {[%clk 0:00:08.7]} 27... Nf6
{[%clk 0:00:29.1]} 28. Re5 {[%clk 0:00:06.3]} 28... Bd2 {[%clk 0:00:20.3]} 29.
R1e2 {[%clk 0:00:02.9]} 29... Bh6 {[%clk 0:00:17.7]} 30. Qa5 {[%clk 0:00:02.4]}
30... Qd6 {[%clk 0:00:10.7]} 31. Kg2 {[%clk 0:00:02.5]} 31... Bg7 {[%clk
0:00:08.9]} 32. Rc5 {[%clk 0:00:02.7]} 32... Ng4 {[%clk 0:00:08.1]} 33. Rxc3
{[%clk 0:00:02]} 33... Bxd4 {[%clk 0:00:07.7]} 34. Rd3 {[%clk 0:00:01.9]} 34...
Qc6+ {[%clk 0:00:07.1]} 35. f3 {[%clk 0:00:02.4]} 35... Bb6 {[%clk 0:00:05.5]}
36. b5 {[%clk 0:00:01.8]} 36... Qc4 {[%clk 0:00:04.2]} 37. Qd2 {[%clk 0:00:02]}
37... Nf6 {[%clk 0:00:02.8]} 38. Rc3 {[%clk 0:00:02.4]} 38... Qxb5 {[%clk
0:00:02.9]} 39. Nd4 {[%clk 0:00:01.9]} 39... Qd5 {[%clk 0:00:02]} 40. Rd3 {[%clk
0:00:02.1]} 1-0